[Event "21st Alekhine FIDE 2017"]
[Site "Voronezh"]
[Date "2017.06.20"]
[Round "9"]
[White "Moiseenko, Andrey"]
[Black "Lepaev, Andrey"]
[Result "0-1"]
[ECO "A40"]
[WhiteElo "2010"]
[BlackElo "2059"]
[Annotator "NA RC"]
[PlyCount "104"]
[EventDate "2017.??.??"]
[EventType "swiss"]
[EventCountry "RUS"]
[SourceTitle "playchess.com"]
[Source "ChessBase"]
[SourceQuality "1"]
[TimeControl "40/5400+30:1800+30"]

1. d4 {[%emt 0:07:29]} Nf6 {[%emt 0:00:04]} 2. c4 {[%emt 0:00:03]} e6 {[%emt 0:00:03]} 3. g3 {[%emt 0:00:03]} Bb4+ {[%emt 0:00:04]} 4. Bd2 {[%emt 0:00:04]} Bxd2+ {[%emt 0:00:01]} 5. Qxd2 {[%emt 0:00:23]} d5 {[%emt 0:00:19]} 6. Nf3 {[%emt 0:04:27]} O-O {[%emt 0:00:06]} 7. Bg2 {[%emt 0:00:43]} Nbd7 {[%emt 0:00:04]} 8. O-O {[%emt 0:01:23]} c6 {[%emt 0:00:02]} 9. Qc2 {[%emt 0:00:31]} Qe7 {[%emt 0:04:58]} 10. Nbd2 {[%emt 0:00:18]} e5 {[%emt 0:10:02]} 11. cxd5 {[%emt 0:11:12]} Nxd5 {[%emt 0:00:07] LiveBook: 8 Games} 12. e4 {[%emt 0:10:06]} N5f6 $16 {[%emt 0:01:26]} 13. Nc4 {[%emt 0:14:03]} exd4 14. Nxd4 {[%emt 0:00:08]} Ne5 {[%emt 0:01:51]} 15. Ne3 {[%emt 0:02:49]} Rd8 {[%emt 0:09:21]} 16. Rad1 {[%emt 0:03:23]} g6 {[%emt 0:01:39]} 17. h3 {[%emt 0:11:24]} Bxh3 {[%emt 0:02:03]} 18. Nxc6 {[%emt 0:01:05]} Nxc6 {[%emt 0:00:08]} 19. Bxh3 {[%emt 0:01:45]} Nd4 {[%emt 0:02:20]} 20. Qa4 {[%emt 0:07:31]} Qxe4 {[%emt 0:00:09]} 21. Qa3 {[%emt 0:01:02]} Nf3+ {[%emt 0:31:34]} 22. Kh1 {[%emt 0:00:04]} Qe5 {[%emt 0:07:24]} 23. Ng4 {[%emt 0:03:04]} Nxg4 {[%emt 0:01:24]} 24. Qxf3 {[%emt 0:00:54]} h5 {[%emt 0:02:47]} 25. Bxg4 {[%emt 0:03:46]} hxg4 {[%emt 0:00:55]} 26. Rxd8+ {[%emt 0:04:25]} Rxd8 {[%emt 0:00:01]} 27. Qxb7 {[%emt 0:00:01]} Kg7 {[%emt 0:04:49]} 28. Kg1 {[%emt 0:03:19]} a5 {[%emt 0:01:12]} 29. b3 {[%emt 0:01:03]} Rd2 {[%emt 0:01:30]} 30. a3 {[%emt 0:07:10]} Rb2 {[%emt 0:00:15]} 31. b4 {[%emt 0:00:29]} Qd4 {[%emt 0:00:53]} 32. Qc6 {[%emt 0:00:47]} axb4 {[%emt 0:00:07]} 33. axb4 {[%emt 0:00:00]} Rxb4 {[%emt 0:00:23]} 34. Rc1 {[%emt 0:00:32]} Rb3 {[%emt 0:00:26]} 35. Qc4 {[%emt 0:00:34]} Rxg3+ {[%emt 0:00:14]} 36. Kf1 {[%emt 0:00:12]} Rd3 {[%emt 0:00:09]} 37. Qxd4+ {[%emt 0:00:08]} Rxd4 {[%emt 0:00:01]} 38. Rc7 {[%emt 0:00:26]} Rf4 {[%emt 0:00:01]} 39. Kg2 {[%emt 0:00:05]} Rf3 {[%emt 0:02:28]} 40. Ra7 {[%emt 0:00:22]} Kh6 {[%emt 0:30:08]} 41. Ra5 {[%emt 0:30:11]} f5 {[%emt 0:00:07]} 42. Ra6 {[%emt 0:00:13]} Kg5 {[%emt 0:00:02]} 43. Rb6 {[%emt 0:00:45]} Ra3 {[%emt 0:00:21]} 44. Rc6 {[%emt 0:00:49]} Ra2 {[%emt 0:00:10]} 45. Rc5 {[%emt 0:01:07]} Kh4 {[%emt 0:00:15]} 46. Rc4 {[%emt 0:00:06]} g5 {[%emt 0:02:03]} 47. Rc3 {[%emt 0:00:59]} f4 {[%emt 0:01:08]} 48. Kg1 {[%emt 0:00:27]} Ra1+ {[%emt 0:01:04]} 49. Kh2 {[%emt 0:01:43]} Ra2 {[%emt 0:00:01]} 50. Kg2 {[%emt 0:00:04]} f3+ {[%emt 0:00:16]} 51. Kg1 {[%emt 0:00:19]} Ra1+ {[%emt 0:00:01]} 52. Kh2 {[%emt 0:00:07]} Rf1 {[%emt 0:00:02]} 0-1